bitfinex-derivatives/quotes_BTCF0:USTF0_20250602
["timestamp","ask_amount","ask_price","bid_price","bid_amount"]
[1748829442338,1.81310788,105470.0,105460.0,0.23962513]
[1748829442543,1.81310788,105470.0,105460.0,0.1963838]
[1748829442728,1.81310788,105470.0,105460.0,0.23965245]
[1748829442933,1.91310788,105470.0,105460.0,0.23965245]
[1748829443940,1.86310788,105470.0,105460.0,0.23965245]
[1748829444138,1.86310788,105470.0,105460.0,0.24390199]
[1748829444727,1.91072308,105470.0,105460.0,0.24390199]
[1748829445237,1.91072308,105470.0,105460.0,0.23965245]
[1748829446835,1.91072308,105470.0,105460.0,0.23968525]
[1748829447730,1.91028308,105470.0,105460.0,0.23968525]
[1748829448232,1.91028308,105470.0,105460.0,0.24393479]
[1748829448647,1.79519195,105470.0,105460.0,0.24393479]
[1748829448839,1.91016308,105470.0,105460.0,0.24393479]
[1748829450748,1.91016308,105470.0,105460.0,0.24392629]
[1748829451257,1.91016308,105470.0,105460.0,0.24392524]
[1748829452740,1.79507195,105470.0,105460.0,0.24392524]
[1748829452947,1.91016308,105470.0,105460.0,0.24392524]
[1748829453749,1.54936308,105470.0,105460.0,0.24392524]
[1748829454046,1.91016308,105470.0,105460.0,0.24392524]
[1748829455147,1.91016308,105470.0,105460.0,0.20063334]
[1748829455346,1.91016308,105470.0,105460.0,0.24393032]
[1748829455750,1.91016308,105470.0,105460.0,0.24393164]
[1748829456050,1.93976332,105470.0,105460.0,0.20063334]
[1748829456439,1.93976332,105470.0,105460.0,0.1963838]
[1748829456848,1.98976332,105470.0,105460.0,0.1963848]
[1748829457447,1.98976332,105470.0,105460.0,0.20063434]
[1748829457746,2.28976332,105470.0,105460.0,0.20063434]
[1748829458349,2.28976332,105470.0,105460.0,0.1963848]
[1748829459651,1.93467219,105470.0,105460.0,0.1963848]
[1748829459949,2.04976332,105470.0,105460.0,0.1963848]
[1748829461751,2.04976332,105470.0,105460.0,0.2292848]
[1748829462852,2.04976332,105470.0,105460.0,0.2605848]
[1748829463449,2.04976332,105470.0,105460.0,0.26483434]
[1748829463846,1.93976332,105470.0,105460.0,0.26483434]
[1748829465352,1.93976332,105470.0,105460.0,0.29483434]
[1748829466263,1.01065982,105470.0,105460.0,0.69895603]
[1748829466448,0.99752869,105470.0,105460.0,0.78404716]
[1748829466654,1.33424869,105470.0,105460.0,1.15474716]
[1748829466843,1.44933982,105470.0,105460.0,1.15474716]
[1748829467046,1.44945982,105470.0,105460.0,1.19913526]
[1748829468759,1.44945982,105470.0,105460.0,1.15475784]
[1748829468957,1.44945982,105470.0,105460.0,1.19916337]
[1748829469255,1.44945982,105470.0,105460.0,0.97916337]
[1748829469949,1.01393982,105470.0,105460.0,0.97916337]
[1748829470251,1.44945982,105470.0,105460.0,0.97916337]
[1748829470556,1.01393982,105470.0,105460.0,0.97916337]
[1748829470954,1.28675349,105470.0,105460.0,0.97916337]
[1748829471156,1.28663349,105470.0,105460.0,0.97916337]
[1748829471453,1.40184462,105470.0,105460.0,0.97916337]
[1748829471758,1.40184462,105470.0,105460.0,0.97491383]
[1748829471957,1.28675349,105470.0,105460.0,0.97491383]
[1748829472256,1.40184462,105470.0,105460.0,0.97491383]
[1748829473156,1.40184462,105470.0,105460.0,0.97494922]
[1748829473555,1.43374462,105470.0,105460.0,0.97494922]
[1748829476864,1.40184462,105470.0,105460.0,0.97494922]
[1748829477558,1.40184462,105470.0,105460.0,0.97493994]
[1748829479163,1.43364462,105470.0,105460.0,0.97493994]
[1748829481276,1.40184462,105470.0,105460.0,0.97493994]
[1748829483066,1.40184462,105470.0,105460.0,0.97493624]
[1748829483260,1.40184462,105470.0,105460.0,0.61413624]
[1748829483261,1.43434462,105470.0,105460.0,0.61413624]
[1748829483459,1.43434462,105470.0,105460.0,0.97493624]
[1748829484666,1.46504462,105470.0,105460.0,0.93051976]
[1748829484868,1.49604462,105470.0,105460.0,0.85984575]
[1748829485558,1.04751097,105470.0,105460.0,1.09002801]
[1748829485767,1.1626021,105470.0,105460.0,0.85984575]
[1748829485969,1.1626021,105470.0,105460.0,0.97493688]
[1748829488466,1.1626021,105470.0,105460.0,1.02321801]
[1748829488772,1.1626021,105470.0,105460.0,0.97493688]
[1748829488968,1.1626021,105470.0,105460.0,1.02321801]
[1748829489163,1.1626021,105470.0,105460.0,1.02322675]
[1748829489969,1.1626021,105470.0,105460.0,0.90813562]
[1748829492063,1.1626021,105470.0,105460.0,0.90815033]
[1748829492264,1.1626021,105470.0,105460.0,0.51665033]
[1748829492463,1.1626021,105470.0,105460.0,0.87745033]
[1748829493270,1.1626021,105470.0,105460.0,0.51665033]
[1748829493467,1.1626021,105470.0,105460.0,0.78966593]
[1748829493662,1.1626021,105470.0,105460.0,0.51666034]
[1748829493863,1.5234021,105470.0,105460.0,0.51666034]
[1748829494969,1.1626021,105470.0,105460.0,0.51666034]
[1748829496668,1.18198053,105470.0,105460.0,0.51666034]
[1748829497277,1.18198053,105470.0,105460.0,0.54826034]
[1748829497870,1.18198053,105470.0,105460.0,0.46046593]
[1748829498070,1.18198053,105470.0,105460.0,0.54828817]
[1748829498377,1.18198053,105470.0,105460.0,0.6633793]
[1748829499575,1.18198053,105470.0,105460.0,0.6317793]
[1748829499772,1.18198053,105470.0,105460.0,0.58349817]
[1748829500668,1.18198053,105470.0,105460.0,2.08349817]
[1748829501377,1.18186053,105470.0,105460.0,2.08349817]
[1748829502382,1.18186053,105470.0,105460.0,2.03905014]
[1748829502678,1.18186053,105470.0,105460.0,2.08349858]
[1748829503878,1.54266053,105470.0,105460.0,2.08349858]
[1748829506182,1.54402053,105470.0,105460.0,1.84840745]
[1748829506381,1.34039319,105470.0,105460.0,2.25905014]
[1748829506575,1.4585529,105470.0,105460.0,2.29165014]
[1748829506886,1.4585529,105470.0,105460.0,2.29164931]
[1748829507085,1.4585129,105470.0,105460.0,2.29164931]
[1748829508984,1.42587774,105470.0,105460.0,2.29164931]
[1748829510390,1.42587774,105470.0,105460.0,2.17655818]
[1748829510584,1.42587774,105470.0,105460.0,2.29164931]
[1748829511086,1.42587774,105470.0,105460.0,2.24827593]
[1748829511301,1.42587774,105470.0,105460.0,2.29164798]
[1748829514007,1.54096887,105470.0,105460.0,2.29164798]
[1748829515411,1.51141168,105470.0,105460.0,2.38437658]
[1748829517607,1.51141168,105470.0,105460.0,2.35177658]
[1748829517905,1.51141168,105470.0,105460.0,2.23668545]
[1748829519513,1.51141168,105470.0,105460.0,2.35177658]
[1748829521199,1.51141168,105470.0,105460.0,2.23668545]
[1748829521404,1.51141168,105470.0,105460.0,2.20538545]
[1748829522907,1.5577985,105470.0,105460.0,2.23788545]
[1748829523412,1.5577985,105470.0,105460.0,2.24213499]
[1748829523712,1.5577985,105470.0,105460.0,2.35722612]
[1748829524516,1.5577985,105470.0,105460.0,2.35722742]
[1748829531010,1.5577985,105470.0,105460.0,2.2694066]
[1748829531217,1.46919598,105470.0,105460.0,2.22112547]
[1748829531417,1.46919598,105470.0,105460.0,2.21687593]
[1748829531618,1.46919598,105470.0,105460.0,2.1501461]
[1748829531813,1.55780406,105470.0,105460.0,2.38346116]
[1748829532316,1.55656406,105470.0,105460.0,2.38346116]
[1748829532515,1.55656406,105470.0,105460.0,2.3877107]
[1748829533417,1.55656406,105470.0,105460.0,2.29988677]
[1748829533605,1.55656406,105470.0,105460.0,2.38771272]
[1748829538215,1.55656406,105470.0,105460.0,2.29988677]
[1748829538519,1.55656406,105470.0,105460.0,2.38771377]
[1748829540520,1.55656406,105470.0,105460.0,2.27262264]
[1748829540717,1.55656406,105470.0,105460.0,2.38771377]
[1748829541523,1.55656406,105470.0,105460.0,2.24222264]
[1748829542716,1.91165519,105470.0,105460.0,0.6242119]
[1748829543017,1.79656406,105470.0,105460.0,0.6242119]
[1748829544116,1.79656406,105470.0,105460.0,0.0946531]
[1748829544324,1.79656406,105470.0,105460.0,0.23976062]
[1748829545030,1.79656406,105470.0,105460.0,0.23975554]
[1748829546324,1.59656406,105470.0,105460.0,0.23975554]
[1748829546622,1.60656406,105470.0,105460.0,0.23975554]
[1748829547726,1.60656406,105470.0,105460.0,0.24400508]
[1748829549426,1.17096406,105470.0,105460.0,0.20063444]
[1748829549735,1.60656406,105470.0,105460.0,0.24398409]
[1748829552432,1.60656406,105470.0,105460.0,0.24398094]
[1748829553524,1.72470816,105470.0,105460.0,0.24398094]
[1748829553934,1.72470816,105470.0,105460.0,0.24397999]
[1748829555636,1.63610008,105470.0,105460.0,0.20063444]
[1748829555938,1.63610008,105470.0,105460.0,0.1963849]
[1748829557231,1.63610008,105470.0,105460.0,0.0068261]
[1748829558337,1.87610008,105470.0,105460.0,0.1963848]
[1748829558533,1.87610008,105470.0,105460.0,0.0068261]
[1748829558733,1.87610008,105470.0,105460.0,0.0400261]
[1748829564946,1.76100895,105470.0,105460.0,0.2295849]
[1748829565135,1.87610008,105470.0,105460.0,0.2295849]
[1748829565429,1.87610008,105470.0,105460.0,0.0400261]
[1748829565635,1.84642784,105470.0,105460.0,0.08337296]
[1748829567041,1.84642784,105470.0,105460.0,0.0400261]
[1748829567240,1.84642784,105470.0,105460.0,0.08337415]
[1748829567441,1.75795598,105470.0,105460.0,0.08337415]
[1748829567645,1.87610008,105470.0,105460.0,0.08337415]
[1748829570840,1.51530008,105470.0,105460.0,0.08337415]
[1748829571041,1.87610008,105470.0,105460.0,0.08337415]
[1748829571538,1.87610008,105470.0,105460.0,0.08338463]
[1748829573147,1.87610008,105470.0,105460.0,0.08763417]
[1748829575650,1.51530008,105470.0,105460.0,0.08763417]
[1748829575853,1.87610008,105470.0,105460.0,0.08763417]
[1748829577047,1.87610008,105470.0,105460.0,0.11963417]
[1748829577048,1.44050008,105470.0,105460.0,0.11963417]
[1748829577249,1.87606008,105470.0,105460.0,0.11963417]
[1748829578747,1.76096895,105470.0,105460.0,0.11963417]
[1748829578954,1.87606008,105470.0,105460.0,0.11963417]
[1748829579853,1.87578008,105470.0,105460.0,0.11963417]
[1748829580353,1.87578008,105470.0,105460.0,0.11963631]
[1748829580955,2.23658008,105470.0,105460.0,0.11963631]
[1748829583856,2.11843598,105470.0,105460.0,0.11963631]
[1748829584853,2.11843598,105470.0,105460.0,0.11963569]
[1748829585051,2.11843598,105470.0,105460.0,0.08763569]
[1748829589158,2.11843598,105470.0,105460.0,0.04427564]
[1748829589355,2.11843598,105470.0,105460.0,0.08763559]
[1748829590355,2.23658008,105470.0,105460.0,0.04427564]
[1748829590556,2.21720165,105470.0,105460.0,0.04427564]
[1748829591864,2.21720165,105470.0,105460.0,0.07457564]
[1748829594462,2.21720165,105470.0,105460.0,0.0703261]
[1748829595355,2.21720165,105470.0,105460.0,0.07457564]
[1748829595864,2.24673768,105470.0,105460.0,0.07457564]
[1748829597665,2.24673768,105470.0,105460.0,0.04427564]
[1748829602070,2.24673768,105470.0,105460.0,0.07567564]
[1748829603871,1.70949768,105470.0,105460.0,0.07567564]
[1748829604072,2.24661768,105470.0,105460.0,0.29523434]
[1748829604273,2.24673768,105470.0,105460.0,0.10567564]
[1748829605871,2.24673768,105470.0,105460.0,0.14903975]
[1748829606170,2.21703816,105470.0,105460.0,0.14903975]
[1748829606773,2.21703816,105470.0,105460.0,0.33859855]
[1748829607273,2.21703816,105470.0,105460.0,0.33859638]
[1748829608765,2.21691816,105470.0,105460.0,0.33859638]
[1748829608968,2.21703816,105470.0,105460.0,0.33859638]
[1748829609373,2.01703816,105470.0,105460.0,0.34859638]
[1748829609875,2.01703816,105470.0,105460.0,0.34859696]
[1748829610066,1.29543816,105470.0,105460.0,0.34859696]
[1748829610472,2.01703816,105470.0,105460.0,0.34859696]
[1748829610672,2.24703816,105470.0,105460.0,0.34859696]
[1748829610873,2.13194703,105470.0,105460.0,0.34859696]
[1748829611073,2.24703816,105470.0,105460.0,0.34859696]
[1748829612368,2.24703816,105470.0,105460.0,0.30523444]
[1748829612573,2.24703816,105470.0,105460.0,0.34859793]
[1748829614074,2.24703816,105470.0,105460.0,0.30523444]
[1748829614267,2.24703816,105470.0,105460.0,0.34859908]
[1748829615871,1.45991816,105470.0,105460.0,0.34859908]
[1748829616077,1.35401755,105470.0,105460.0,0.82369021]
[1748829616278,1.35389755,105470.0,105460.0,0.82369021]
[1748829616474,0.19361765,105470.0,105460.0,1.34403113]
[1748829616668,0.15955285,105470.0,105460.0,1.70366439]
[1748829616869,0.10178228,105480.0,105470.0,0.1895408]
[1748829617069,0.10178228,105480.0,105470.0,2.83844831]
[1748829617471,0.10190228,105480.0,105470.0,2.870643]
[1748829617869,0.10190228,105480.0,105470.0,2.78178094]
[1748829618084,0.29642518,105480.0,105470.0,2.78278094]
[1748829618282,0.29642518,105480.0,105470.0,2.69504705]
[1748829618477,0.29642518,105480.0,105470.0,2.78543887]
[1748829618780,0.29142518,105480.0,105470.0,2.7863858]
[1748829619186,0.40651631,105480.0,105470.0,2.7863858]
[1748829619679,0.40651631,105480.0,105470.0,2.7911258]
[1748829619875,0.40651631,105480.0,105470.0,1.2911258]
[1748829620274,0.29142518,105480.0,105470.0,1.2911258]
[1748829620481,0.29142518,105480.0,105470.0,2.73188443]
[1748829621178,0.29142518,105480.0,105470.0,2.68361068]
[1748829621377,0.29142518,105480.0,105470.0,2.32281068]
[1748829622971,0.40651631,105480.0,105470.0,2.32281068]
[1748829623374,0.40651631,105480.0,105470.0,2.32270998]
[1748829625585,0.40651631,105480.0,105470.0,2.27842594]
[1748829627887,0.40651631,105480.0,105470.0,2.30972594]
[1748829629078,0.40651631,105480.0,105470.0,0.80972594]
[1748829629285,0.43951631,105480.0,105470.0,0.80972594]
[1748829633192,0.32442518,105480.0,105470.0,0.80972594]
[1748829633990,0.29142518,105480.0,105470.0,0.80972594]
[1748829635696,0.40651631,105480.0,105470.0,0.80972594]
[1748829636194,0.40651631,105480.0,105470.0,0.81397548]
[1748829636894,0.43691631,105480.0,105470.0,0.81396956]
[1748829637788,0.46841631,105480.0,105470.0,0.81396956]
[1748829639397,0.50131631,105480.0,105470.0,0.81396956]
[1748829639698,0.50131631,105480.0,105470.0,0.86224331]
[1748829640089,0.50131631,105480.0,105470.0,0.85799377]
[1748829640284,0.50131631,105480.0,105470.0,0.81404568]
[1748829640486,0.50131631,105480.0,105470.0,0.85801393]
[1748829641100,0.50131631,105480.0,105470.0,0.86226347]
[1748829642491,0.50131631,105480.0,105470.0,0.90656196]
[1748829645599,0.50131631,105480.0,105470.0,0.96598148]
[1748829645798,0.50131631,105480.0,105470.0,0.91770773]
[1748829646199,0.50131631,105480.0,105470.0,0.8140785]
[1748829646396,0.93655631,105480.0,105470.0,0.8140785]
[1748829646602,0.93655631,105480.0,105470.0,0.90674011]
[1748829649002,0.93643631,105480.0,105470.0,0.90674011]
[1748829649202,1.29723631,105480.0,105470.0,0.90674011]
[1748829649799,1.29723631,105480.0,105470.0,0.76034898]
[1748829650111,1.41220744,105480.0,105470.0,0.2466298]
[1748829650293,1.41220744,105480.0,105470.0,0.24238026]
[1748829650498,1.53018805,105480.0,105470.0,0.24238026]
[1748829651005,1.59018805,105480.0,105470.0,0.24238026]
[1748829651402,1.59018805,105480.0,105470.0,0.2466298]
[1748829653405,1.59018805,105480.0,105470.0,0.20253034]
[1748829654598,1.59018805,105480.0,105470.0,0.24660538]
[1748829654803,1.59018805,105480.0,105470.0,0.20253034]
[1748829655905,1.59018805,105480.0,105470.0,0.25080409]
[1748829656101,1.83300744,105480.0,105470.0,0.29487284]
[1748829658408,1.83300744,105480.0,105470.0,0.24659909]
[1748829658909,1.83300744,105480.0,105470.0,0.24659248]
[1748829661107,1.83300744,105480.0,105470.0,0.10145378]
[1748829661311,1.83300744,105480.0,105470.0,0.29099458]
[1748829661712,1.83300744,105480.0,105470.0,0.29098793]
[1748829662603,1.83300744,105480.0,105470.0,0.24658924]
[1748829664511,1.39780744,105480.0,105470.0,0.24658924]
[1748829664698,1.83296744,105480.0,105470.0,0.24658924]
[1748829665910,1.83296744,105480.0,105470.0,0.20253034]
[1748829666104,1.83296744,105480.0,105470.0,0.24658781]
[1748829666514,1.93296744,105480.0,105470.0,0.24658781]
[1748829668702,1.70278518,105480.0,105470.0,0.24658781]
[1748829668903,1.93296744,105480.0,105470.0,0.24658781]
[1748829669112,1.93296744,105480.0,105470.0,0.27758781]
[1748829670321,1.93296744,105480.0,105470.0,0.27758877]
[1748829671617,1.93296744,105480.0,105470.0,0.32586252]
[1748829671815,1.93296744,105480.0,105470.0,0.27758877]
[1748829672517,1.93296744,105480.0,105470.0,0.23353034]
[1748829672717,1.93296744,105480.0,105470.0,0.27759324]
[1748829672916,1.81787631,105480.0,105470.0,0.30759324]
[1748829673721,1.93296744,105480.0,105470.0,0.30759324]
[1748829674121,1.49780744,105480.0,105470.0,0.30759324]
[1748829674325,1.20762518,105480.0,105470.0,0.80268437]
[1748829674621,1.57846518,105480.0,105470.0,0.80268437]
[1748829674820,1.57846518,105480.0,105470.0,0.83348437]
[1748829675511,1.69355631,105480.0,105470.0,0.87788657]
[1748829676022,1.25843631,105480.0,105470.0,0.87788657]
[1748829676325,1.69355631,105480.0,105470.0,0.87788657]
[1748829677222,0.97195631,105480.0,105470.0,0.87788657]
[1748829677521,1.33275631,105480.0,105470.0,0.87788657]
[1748829679525,1.33275631,105480.0,105470.0,0.78942147]
[1748829679719,1.33275631,105480.0,105470.0,0.8779759]
[1748829681524,1.44784744,105480.0,105470.0,0.76288477]
[1748829681723,1.51204744,105480.0,105470.0,0.76288477]
[1748829682120,1.51204744,105480.0,105470.0,0.81115852]
[1748829684831,1.51204744,105480.0,105470.0,0.37035852]
[1748829685126,1.52204744,105480.0,105470.0,0.37035852]
[1748829685327,1.64002805,105480.0,105470.0,0.32591913]
[1748829687234,1.64002805,105480.0,105470.0,0.27764538]
[1748829689733,1.64002805,105480.0,105470.0,0.27764843]
[1748829691824,1.20490805,105480.0,105470.0,0.27764843]
[1748829692035,1.63998805,105480.0,105470.0,0.27764843]
[1748829692224,1.63998805,105480.0,105470.0,0.30964843]
[1748829694125,1.63998805,105480.0,105470.0,0.26553034]
[1748829694429,1.63998805,105480.0,105470.0,0.30964864]
[1748829694637,1.52489692,105480.0,105470.0,0.30964864]
[1748829695427,1.52200744,105480.0,105470.0,0.35409086]
[1748829696237,1.52200744,105480.0,105470.0,0.40236461]
[1748829697640,1.52200744,105480.0,105470.0,0.37036461]
[1748829698538,1.52200744,105480.0,105470.0,0.18082584]
[1748829698737,1.87998805,105480.0,105470.0,0.10538289]
[1748829698931,1.87998805,105480.0,105470.0,0.10113335]
[1748829699242,1.87998805,105480.0,105470.0,0.0528596]
[1748829700043,1.87998805,105480.0,105470.0,0.05710914]
[1748829701245,1.87998805,105480.0,105470.0,0.01298954]
[1748829702541,1.87998805,105480.0,105470.0,0.05708803]
[1748829703244,1.87998805,105480.0,105470.0,0.05708821]
[1748829704340,1.87998805,105480.0,105470.0,0.01298954]
[1748829706347,1.87986805,105480.0,105470.0,0.01298954]
[1748829708149,1.87986805,105480.0,105470.0,0.04388954]
[1748829708749,0.1895407,105470.0,105460.0,0.0340861]
[1748829709052,0.92940405,105470.0,105460.0,0.26772715]
[1748829709439,1.15940405,105470.0,105460.0,0.26772715]
[1748829709848,0.91940405,105470.0,105460.0,0.26772715]
[1748829710564,1.01940405,105470.0,105460.0,0.27172715]
[1748829710765,1.01940405,105470.0,105460.0,0.27572715]
[1748829710956,1.01940405,105470.0,105460.0,0.28046715]
[1748829711764,1.01940405,105470.0,105460.0,0.09090845]
[1748829711969,1.01940405,105470.0,105460.0,0.28046725]
[1748829712154,1.01940405,105470.0,105460.0,0.28045326]
[1748829712355,1.01940405,105470.0,105460.0,0.09089446]
[1748829712559,1.01940405,105470.0,105460.0,0.28045326]
[1748829716163,1.01940405,105470.0,105460.0,0.09089446]
[1748829716366,1.01940405,105470.0,105460.0,0.2363849]
[1748829716556,1.01940405,105470.0,105460.0,0.0468261]
[1748829716757,1.01940405,105470.0,105460.0,0.2363849]
[1748829717054,1.01940405,105470.0,105460.0,0.2982849]
[1748829717258,1.01952405,105470.0,105460.0,0.2982849]
[1748829718566,0.90443292,105470.0,105460.0,0.2982849]
[1748829718865,1.45452405,105470.0,105460.0,0.2982849]
[1748829721356,0.0473911,105460.0,105440.0,0.02434219]
[1748829721556,0.1895948,105440.0,105430.0,0.05036044]
[1748829721858,0.1896128,105430.0,105420.0,0.0606]
[1748829722059,1.11009961,105430.0,105420.0,0.5902307]
[1748829722259,1.11009961,105430.0,105420.0,0.6102307]
[1748829722260,0.75099568,105430.0,105420.0,0.6102307]
[1748829722465,0.5364,105430.0,105420.0,0.38532183]
[1748829722674,0.62131572,105440.0,105430.0,0.1896122]
[1748829722970,0.62131572,105440.0,105430.0,0.2530122]
[1748829722971,1.58566624,105440.0,105430.0,0.2530122]
[1748829723273,1.73345737,105440.0,105430.0,0.0937]
[1748829723457,1.45713737,105440.0,105430.0,0.0323]
[1748829723666,1.45713737,105440.0,105430.0,0.002]
[1748829723866,1.75357737,105440.0,105430.0,0.002]
[1748829724063,1.75557737,105440.0,105430.0,0.002]
[1748829724264,2.00545737,105440.0,105430.0,0.002]
[1748829724461,2.10557737,105440.0,105430.0,0.00424954]
[1748829724662,2.01718169,105440.0,105430.0,0.00424954]
[1748829724862,2.10557737,105440.0,105430.0,0.00424954]
[1748829725068,2.11497857,105440.0,105430.0,0.00424954]
[1748829725269,1.99998627,105440.0,105430.0,0.00424954]
[1748829725569,1.62659059,105440.0,105430.0,0.00524954]
[1748829726270,1.08074939,105440.0,105430.0,0.00524954]
[1748829726570,1.70558507,105440.0,105430.0,0.00524954]
[1748829726769,1.61706939,105440.0,105430.0,0.06844954]
[1748829727069,1.08074939,105440.0,105430.0,0.06844954]
[1748829727263,1.61718939,105440.0,105430.0,0.07318954]
[1748829728970,1.62661356,105440.0,105430.0,0.07318954]
[1748829729472,1.62661356,105440.0,105430.0,0.26280184]
[1748829729473,1.62665356,105440.0,105430.0,0.26280184]
[1748829730174,1.62665356,105440.0,105430.0,0.07318954]
[1748829732667,1.88665356,105440.0,105430.0,0.07318954]
[1748829734881,1.7714636,105440.0,105430.0,0.07318954]
[1748829735177,1.88665356,105440.0,105430.0,0.07318954]
[1748829735782,1.97504924,105440.0,105430.0,0.07318954]
[1748829737081,1.97504924,105440.0,105430.0,0.04008954]
[1748829737279,1.69063714,105440.0,105410.0,0.55058948]
[1748829737478,0.1896303,105420.0,105410.0,0.30260148]
[1748829737779,1.22108663,105420.0,105410.0,0.06554228]
[1748829737981,1.34688663,105420.0,105410.0,0.25519058]
[1748829738378,1.43528231,105420.0,105410.0,0.25519058]
[1748829738588,1.43528231,105420.0,105410.0,0.25619058]
[1748829739291,1.53528231,105420.0,105410.0,0.06654228]
[1748829739474,1.53528231,105420.0,105410.0,0.25619058]
[1748829739675,1.44688663,105420.0,105410.0,0.25619058]
[1748829740280,1.53528231,105420.0,105410.0,0.25619058]
[1748829740680,1.53528231,105420.0,105410.0,0.06654228]
[1748829741285,1.65047227,105420.0,105410.0,0.06654228]
[1748829741583,1.65047227,105420.0,105410.0,0.19079058]
[1748829741584,1.49009235,105420.0,105410.0,0.19079058]
[1748829741783,1.49009235,105420.0,105410.0,0.00114228]
[1748829741982,1.60528231,105420.0,105410.0,0.03364228]
[1748829742171,1.60528231,105420.0,105410.0,0.03838228]
[1748829742374,1.60528231,105420.0,105410.0,0.07048228]
[1748829743074,1.60528231,105420.0,105410.0,0.26013048]
[1748829743279,1.63638231,105420.0,105410.0,0.26013048]
[1748829744578,1.75157227,105420.0,105410.0,0.03838228]
[1748829744779,1.77157227,105420.0,105410.0,0.03838228]
[1748829745779,1.68317659,105420.0,105410.0,0.03838228]
[1748829746391,1.56798663,105420.0,105410.0,0.03838228]
[1748829746588,0.1896478,105410.0,105400.0,0.06518729]
[1748829746890,0.6468478,105410.0,105400.0,0.25415309]
[1748829747081,1.26703776,105410.0,105400.0,0.28465309]
[1748829747386,1.23545776,105410.0,105400.0,0.28465309]
[1748829747581,1.23549776,105410.0,105400.0,0.38465309]
[1748829747787,1.33537776,105410.0,105400.0,0.38965309]
[1748829748092,1.33549776,105410.0,105400.0,0.28965309]
[1748829749182,1.2203078,105410.0,105400.0,0.28965309]
[1748829749380,1.33549776,105410.0,105400.0,0.33237603]
[1748829749588,1.33549776,105410.0,105400.0,0.28965309]
[1748829749589,1.38191929,105410.0,105400.0,0.28965309]
[1748829750089,1.38191929,105410.0,105400.0,0.33237294]
[1748829750290,1.38191929,105410.0,105400.0,0.28965309]
[1748829750694,1.44231929,105410.0,105400.0,0.33237057]
[1748829751983,1.41221929,105410.0,105400.0,0.33237057]
[1748829752783,1.41221929,105410.0,105400.0,0.28965309]
[1748829754795,1.41221929,105410.0,105400.0,0.29390263]
[1748829755392,1.44391929,105410.0,105400.0,0.29390263]
[1748829760386,2.52011929,105410.0,105400.0,0.29390263]
[1748829761198,2.52011929,105410.0,105400.0,0.26340263]
[1748829761589,2.60851497,105410.0,105400.0,0.26340263]
[1748829762100,2.60851497,105410.0,105400.0,0.26349219]
[1748829763006,2.74851497,105410.0,105400.0,0.07382639]
[1748829763192,2.74851497,105410.0,105400.0,0.26349239]
[1748829764099,2.74851497,105410.0,105400.0,0.04172639]
[1748829764594,2.74851497,105410.0,105400.0,0.08448092]
[1748829764794,2.74851497,105410.0,105400.0,0.08448142]
[1748829765098,2.74851497,105410.0,105400.0,0.27414752]
[1748829765393,2.21167497,105410.0,105400.0,0.27414752]
[1748829765698,2.74831497,105410.0,105400.0,0.31484752]
[1748829765896,2.74843497,105410.0,105400.0,0.34524752]
[1748829768093,2.74843497,105410.0,105400.0,0.39352127]
[1748829768400,2.74843497,105410.0,105400.0,0.38352127]
[1748829769201,2.74843497,105410.0,105400.0,0.38357027]
[1748829769400,2.74843497,105410.0,105400.0,0.16350417]
[1748829772105,2.74843497,105410.0,105400.0,0.35317027]
[1748829773307,2.74843497,105410.0,105400.0,0.31036624]
[1748829773601,2.86641558,105410.0,105400.0,0.35317757]
[1748829775100,2.74843497,105410.0,105400.0,0.35317757]
[1748829775302,2.86641558,105410.0,105400.0,0.35317757]
[1748829776600,2.7780199,105410.0,105400.0,0.35317757]
[1748829776794,2.86661581,105410.0,105400.0,0.35317757]
[1748829777697,2.86661581,105410.0,105400.0,0.35318956]
[1748829779806,2.17622585,105410.0,105400.0,0.35318956]
[1748829780104,2.72665581,105410.0,105400.0,0.35318956]
[1748829781305,2.72665581,105410.0,105400.0,0.11524971]
[1748829781497,2.6086752,105410.0,105400.0,0.13282346]
[1748829781807,2.6086752,105410.0,105400.0,0.08454971]
[1748829782299,2.72665581,105410.0,105400.0,0.13282346]
[1748829782504,2.72665581,105410.0,105400.0,0.10252346]
[1748829782696,2.98665581,105410.0,105400.0,0.10252346]
[1748829783094,2.78007929,105410.0,105400.0,0.05424971]
[1748829783309,2.8980599,105410.0,105400.0,0.05424971]
[1748829784395,2.8980599,105410.0,105400.0,0.01142639]
[1748829785508,0.1896661,105400.0,105390.0,0.07466144]
[1748829785702,0.89110195,105400.0,105390.0,0.11747442]
[1748829785902,0.90051602,105400.0,105390.0,0.07301298]
[1748829786105,1.16051602,105400.0,105390.0,0.07301298]
[1748829786411,1.16051602,105400.0,105390.0,0.04281298]
[1748829786710,1.16051602,105400.0,105390.0,0.002]
[1748829787101,1.26051602,105400.0,105390.0,0.002]
[1748829787300,1.26051602,105400.0,105390.0,0.003]
[1748829789607,1.14253541,105400.0,105390.0,0.003]
[1748829789806,1.29021554,105400.0,105390.0,0.003]
[1748829790201,1.29021554,105400.0,105390.0,0.0349]
[1748829791008,1.29021554,105400.0,105390.0,0.003]
[1748829791206,1.40825031,105400.0,105390.0,0.003]
[1748829791413,1.40823324,105400.0,105390.0,0.003]
[1748829791711,1.29021554,105400.0,105390.0,0.003]
[1748829791913,1.17502558,105400.0,105390.0,0.003]
[1748829792210,1.29021554,105400.0,105390.0,0.003]
[1748829792409,1.40821791,105400.0,105390.0,0.003]
[1748829794912,1.40821791,105400.0,105390.0,0.0342]
[1748829795612,1.49671944,105400.0,105390.0,0.0342]
[1748829795805,1.26053778,105400.0,105390.0,0.0342]
[1748829796601,1.233814,105400.0,105390.0,0.2238841]
[1748829796806,1.34233163,105400.0,105390.0,0.71184396]
[1748829797008,1.33233163,105400.0,105390.0,0.656954]
[1748829797210,1.24398545,105400.0,105390.0,0.656954]
[1748829797519,0.88318545,105400.0,105390.0,0.656954]
[1748829797702,0.34166545,105400.0,105390.0,0.656954]
[1748829798013,0.85020545,105400.0,105390.0,0.81656182]
[1748829798217,0.75008545,105400.0,105390.0,0.86483557]
[1748829798403,0.75020545,105400.0,105390.0,0.74964561]
[1748829799610,0.75020545,105400.0,105390.0,0.75389515]
[1748829800710,0.75020545,105400.0,105390.0,0.66670739]
[1748829800919,0.75020545,105400.0,105390.0,0.7538756]
[1748829801218,0.75040545,105400.0,105390.0,0.7538756]
[1748829801518,0.20856545,105400.0,105390.0,0.7538756]
[1748829801729,0.75036545,105400.0,105390.0,0.7538756]
[1748829802517,0.01889935,105400.0,105390.0,0.7538756]
[1748829802709,0.75048545,105400.0,105390.0,0.86906556]
[1748829803012,0.75048545,105400.0,105390.0,0.92820881]
[1748829803221,0.75048545,105400.0,105390.0,1.1255451]
[1748829803717,0.56149935,105400.0,105390.0,1.17385481]
[1748829804908,0.56149935,105400.0,105390.0,1.65639992]
[1748829804909,0.00012,105400.0,105390.0,1.65639992]
[1748829805113,1.29371633,105420.0,105410.0,0.1896481]
[1748829805316,0.95399633,105420.0,105410.0,0.5624041]
[1748829805515,1.39515633,105420.0,105410.0,0.70490848]
[1748829805821,1.30669015,105420.0,105410.0,0.70490848]
[1748829806008,1.30681015,105420.0,105410.0,0.70490848]